fUST/lending_fUST_20240119
["ID","MTS","AMOUNT","RATE_DAILY","PERIOD"]
[312142537,1705667450327,-350.0,0.00029587,2]
[312142538,1705667450338,-248002.01099224,0.00029588,2]
[312142539,1705667450350,-11051.97122078,0.00029588,2]
[312142541,1705667450361,-3215.46147441,0.00029588,2]
[312142543,1705667450373,-305.51246618,0.00029588,2]
[312142545,1705667450385,-261.40839953,0.00029588,2]
[312142547,1705667450396,-154.92253873,0.00029588,2]
[312142550,1705667450408,-1109.19428477,0.00029588,2]
[312142551,1705667450419,-500.0,0.00029589,2]
[312142553,1705667450430,-500.0,0.00029589,2]
[312142555,1705667450441,-500.0,0.00029589,2]
[312142557,1705667450452,-500.0,0.00029589,2]
[312142558,1705667450465,-509.66,0.00029589,2]
[312142560,1705667450476,-500.0,0.00029589,2]
[312142562,1705667450487,-500.0,0.00029589,2]
[312142564,1705667450499,-500.0,0.00029589,2]
[312142565,1705667450510,-500.0,0.00029589,2]
[312142567,1705667450521,-1144.87,0.00029589,2]
[312142569,1705667450532,-2022.18,0.00029589,2]
[312142571,1705667450542,-500.0,0.00029589,2]
[312142572,1705667450555,-500.0,0.00029589,2]
[312142574,1705667450567,-500.0,0.00029589,2]
[312142576,1705667450577,-450.11453394,0.00029589,2]
[312142578,1705667450588,-186.61271067,0.00029589,2]
[312142579,1705667450601,-586.29188756,0.00029589,2]
[312142580,1705667450611,-1065.44,0.00029589,2]
[312142582,1705667450623,-11232.55,0.00029589,2]
[312142584,1705667450634,-500.0,0.00029589,2]
[312142586,1705667450645,-3660.04,0.00029589,2]
[312142587,1705667450656,-20180.39,0.00029589,2]
[312142589,1705667450666,-500.0,0.00029589,2]
[312142591,1705667450678,-500.0,0.00029589,2]
[312142592,1705667450689,-1845.9,0.00029589,2]
[312142594,1705667450700,-500.0,0.00029589,2]
[312142596,1705667450710,-1484.16,0.00029589,2]
[312142598,1705667450720,-1034.99,0.00029589,2]
[312142600,1705667450731,-500.0,0.00029589,2]
[312142601,1705667450742,-454.98786393,0.00029589,2]
[312142603,1705667450753,-500.0,0.00029589,2]
[312142605,1705667450764,-3841.56,0.00029589,2]
[312142607,1705667450775,-825.46,0.00029589,2]
[312142608,1705667450786,-500.0,0.00029589,2]
[312142609,1705667450797,-1454.26,0.00029589,2]
[312142610,1705667450808,-500.0,0.00029589,2]
[312142611,1705667450819,-500.0,0.00029589,2]
[312142612,1705667450830,-3853.92,0.00029589,2]
[312142613,1705667450841,-760.8,0.00029589,2]
[312142614,1705667450852,-500.0,0.00029589,2]
[312142615,1705667450866,-655.04,0.00029589,2]
[312142616,1705667450877,-4838.72,0.00029589,2]
[312142617,1705667450888,-1135.54,0.00029589,2]
[312142618,1705667450899,-500.0,0.00029589,2]
[312142619,1705667450911,-2055.32,0.00029589,2]
[312142620,1705667450925,-635.59057969,0.00029589,2]
[312142621,1705667450937,-1000.0,0.0002963,2]
[312142622,1705667450950,-802.44,0.00029675,2]
[312142623,1705667450962,-500.0,0.00029675,2]
[312142624,1705667450973,-536.54378971,0.00029675,2]
[312142625,1705667450986,-500.0,0.00029675,2]
[312142626,1705667450997,-500.0,0.00029675,2]
[312142627,1705667451008,-500.0,0.00029675,2]
[312142628,1705667451019,-500.0,0.00029675,2]
[312142629,1705667451030,-500.0,0.00029675,2]
[312142630,1705667451041,-500.0,0.00029675,2]
[312142631,1705667451052,-500.0,0.00029675,2]
[312142632,1705667451063,-500.0,0.00029675,2]
[312142633,1705667451074,-500.0,0.00029675,2]
[312142634,1705667451086,-500.0,0.00029675,2]
[312142635,1705667451098,-808.2,0.00029675,2]
[312142636,1705667451110,-500.0,0.00029675,2]
[312142637,1705667451120,-500.0,0.00029675,2]
[312142638,1705667451131,-500.0,0.00029675,2]
[312142639,1705667451143,-500.0,0.00029675,2]
[312142640,1705667451160,-777.09,0.00029675,2]
[312142641,1705667451170,-500.0,0.00029675,2]
[312142642,1705667451182,-500.0,0.00029675,2]
[312142643,1705667451193,-500.0,0.00029675,2]
[312142644,1705667451205,-502.20901624,0.00029675,2]
[312142645,1705667451216,-500.0,0.00029675,2]
[312142646,1705667451227,-500.0,0.00029675,2]
[312142647,1705667451238,-500.0,0.00029675,2]
[312142648,1705667451249,-500.0,0.00029675,2]
[312142649,1705667451259,-500.0,0.00029675,2]
[312142650,1705667451270,-501.13676936,0.00029675,2]
[312142651,1705667451282,-500.0,0.00029675,2]
[312142652,1705667451292,-500.0,0.00029675,2]
[312142653,1705667451304,-500.0,0.00029675,2]
[312142654,1705667451317,-500.0,0.00029675,2]
[312142655,1705667451332,-296.99584848,0.00029675,2]
[312142656,1705667451344,-500.0,0.00029675,2]
[312142657,1705667451355,-462.82894798,0.00029675,2]
[312142658,1705667451366,-500.0,0.00029675,2]
[312142659,1705667451376,-500.0,0.00029675,2]
[312142660,1705667451387,-500.0,0.00029675,2]
[312142661,1705667451398,-500.0,0.00029675,2]
[312142662,1705667451409,-500.0,0.00029675,2]
[312142663,1705667451480,-500.0,0.00029675,2]
[312142664,1705667451491,-168.23707724,0.00029675,2]
[312142665,1705667451502,-500.0,0.00029675,2]
[312142666,1705667451513,-500.0,0.00029675,2]
[312142667,1705667451524,-1046.28,0.00029675,2]
[312142668,1705667451535,-500.0,0.00029675,2]
[312142669,1705667451546,-500.0,0.00029675,2]
[312142670,1705667451556,-500.0,0.00029675,2]
[312142671,1705667451567,-500.0,0.00029675,2]
[312142672,1705667451578,-1000.0,0.00029675,2]
[312142673,1705667451590,-500.0,0.00029675,2]
[312142674,1705667451600,-500.0,0.00029675,2]
[312142675,1705667451611,-4811.28224285,0.00029685,2]
[312142676,1705667451623,-397.82791057,0.00029685,2]
[312142677,1705667451634,-500.0,0.00029685,2]
[312142678,1705667451645,-500.0,0.00029685,2]
[312142679,1705667451657,-500.0,0.00029686,2]
[312142680,1705667451668,-320.56768778,0.00029686,2]
[312142681,1705667451679,-500.0,0.00029686,2]
[312142682,1705667451692,-500.0,0.00029686,2]
[312142683,1705667451703,-500.0,0.00029686,2]
[312142684,1705667451714,-500.0,0.00029686,2]
[312142685,1705667451726,-350.66557891,0.00029686,2]
[312142686,1705667451739,-500.0,0.00029686,2]
[312142687,1705667451750,-460.93815917,0.00029686,2]
[312142688,1705667451762,-500.82985552,0.00029686,2]
[312142689,1705667451773,-500.36215985,0.00029686,2]
[312142690,1705667451785,-500.0,0.00029686,2]
[312142691,1705667451796,-500.0,0.00029686,2]
[312142692,1705667451807,-334.15306829,0.00029686,2]
[312142693,1705667451818,-500.0,0.00029686,2]
[312142694,1705667451830,-625.55917196,0.00029686,2]
[312142695,1705667451841,-286.11047609,0.00029686,2]
[312142696,1705667451852,-525.11121153,0.00029686,2]
[312142697,1705667451865,-509.91150569,0.00029686,2]
[312142698,1705667451876,-500.0,0.00029686,2]
[312142699,1705667451888,-500.0,0.00029686,2]
[312142700,1705667451898,-500.0,0.00029686,2]
[312142701,1705667451910,-501.2440382,0.00029686,2]
[312142702,1705667451922,-500.0,0.00029686,2]
[312142703,1705667451933,-500.0,0.00029686,2]
[312142704,1705667451944,-155.75366858,0.00029686,2]
[312142705,1705667451954,-468.5128347,0.00029686,2]
[312142706,1705667451966,-500.34598322,0.00029686,2]
[312142707,1705667451978,-500.0,0.00029686,2]
[312142708,1705667451989,-428.00989318,0.00029686,2]
[312142709,1705667452000,-500.0,0.00029686,2]
[312142710,1705667452011,-500.0,0.00029686,2]
[312142711,1705667452022,-501.4348099,0.00029686,2]
[312142712,1705667452033,-500.0,0.00029686,2]
[312142713,1705667452044,-500.0,0.00029686,2]
[312142714,1705667452056,-500.0,0.00029686,2]
[312142715,1705667452068,-500.0,0.00029686,2]
[312142716,1705667452079,-500.0,0.00029686,2]
[312142717,1705667452090,-500.0,0.00029686,2]
[312142718,1705667452101,-500.0,0.00029686,2]
[312142719,1705667452112,-500.0,0.00029686,2]
[312142720,1705667452123,-528.38089854,0.00029686,2]
[312142721,1705667452135,-500.0,0.00029686,2]
[312142722,1705667452149,-156.71468372,0.00029686,2]
[312142723,1705667452160,-515.38228838,0.00029686,2]
[312142724,1705667452172,-441.25551202,0.00029686,2]
[312142725,1705667452183,-500.0,0.00029686,2]
[312142726,1705667452195,-500.0,0.00029686,2]
[312142727,1705667452207,-500.0,0.00029686,2]
[312142728,1705667452217,-500.0,0.00029686,2]
[312142729,1705667452228,-500.0,0.00029686,2]
[312142730,1705667452239,-256.88557354,0.00029686,2]
[312142731,1705667452250,-502.0314944,0.00029686,2]
[312142732,1705667452261,-500.0,0.00029686,2]
[312142733,1705667452272,-556.26137122,0.00029686,2]
[312142734,1705667452283,-500.93177506,0.00029686,2]
[312142735,1705667452295,-500.0,0.00029686,2]
[312142736,1705667452306,-500.0,0.00029686,2]
[312142737,1705667452317,-511.0322068,0.00029686,2]
[312142738,1705667452327,-500.0,0.00029686,2]
[312142739,1705667452338,-601.69002037,0.00029686,2]
[312142740,1705667452350,-500.0,0.00029686,2]
[312142741,1705667452361,-500.0,0.00029686,2]
[312142742,1705667452372,-500.0,0.00029686,2]
[312142743,1705667452383,-503.96709031,0.00029686,2]
[312142744,1705667452395,-500.0,0.00029686,2]
[312142745,1705667452406,-505.91050985,0.00029686,2]
[312142746,1705667452417,-500.0,0.00029686,2]
[312142747,1705667452428,-500.0,0.00029686,2]
[312142748,1705667452439,-500.61638152,0.00029686,2]
[312142749,1705667452450,-500.0,0.00029686,2]
[312142750,1705667452461,-501.21061276,0.00029686,2]
[312142751,1705667452472,-1000.0,0.00029686,2]
[312142752,1705667452484,-500.0,0.00029686,2]
[312142753,1705667452496,-500.0,0.00029686,2]
[312142754,1705667452508,-500.0,0.00029686,2]
[312142755,1705667452519,-500.0,0.00029686,2]
[312142756,1705667452530,-500.0,0.00029686,2]
[312142757,1705667452542,-500.0,0.00029686,2]
[312142758,1705667452556,-506.78784956,0.00029686,2]
[312142759,1705667452568,-310.58802981,0.00029686,2]
[312142760,1705667452579,-500.0,0.00029686,2]
[312142761,1705667452590,-500.0,0.00029686,2]
[312142762,1705667452658,-500.0,0.00029686,2]
[312142763,1705667452670,-500.0,0.00029686,2]
[312142764,1705667452681,-507.80576865,0.00029686,2]
[312142765,1705667452692,-500.0,0.00029686,2]
[312142766,1705667452703,-506.50835302,0.00029686,2]
[312142767,1705667452714,-1000.0,0.00029686,2]
[312142768,1705667452726,-500.0,0.00029686,2]
[312142769,1705667452736,-500.0,0.00029686,2]
[312142770,1705667452747,-500.0,0.00029686,2]
[312142771,1705667452758,-500.0,0.00029686,2]
[312142772,1705667452769,-623.74828753,0.00029686,2]
[312142773,1705667452780,-518.15668923,0.00029686,2]
[312142774,1705667452791,-500.0,0.00029686,2]
[312142775,1705667452803,-500.0,0.00029686,2]
[312142776,1705667452814,-500.0,0.00029686,2]
[312142777,1705667452825,-502.01974004,0.00029686,2]
[312142778,1705667452836,-500.0,0.00029686,14]
[312142779,1705667452848,-200.0236592,0.00029686,2]
[312142780,1705667452859,-500.0,0.00029686,2]
[312142781,1705667452873,-500.0,0.00029686,2]
[312142782,1705667452884,-500.0,0.00029686,2]
[312142783,1705667452895,-500.0,0.00029686,2]
[312142784,1705667452907,-500.0,0.00029686,2]
[312142785,1705667452919,-500.0,0.00029686,2]
[312142786,1705667452930,-500.0,0.00029686,2]
[312142787,1705667452941,-500.0,0.00029686,2]
[312142788,1705667452952,-500.0,0.00029686,2]
[312142789,1705667452965,-531.37845023,0.00029686,2]
[312142790,1705667452977,-501.88135404,0.00029686,2]
[312142791,1705667452988,-500.0,0.00029686,2]
[312142792,1705667452999,-282.63371016,0.00029686,2]
[312142793,1705667453011,-287.43882541,0.00029686,2]
[312142794,1705667453023,-500.0,0.00029686,2]
[312142795,1705667453034,-500.0,0.00029686,2]
[312142796,1705667453046,-500.0,0.00029686,2]
[312142797,1705667453057,-506.35665942,0.00029686,2]
[312142798,1705667453068,-500.0,0.00029686,2]
[312142799,1705667453079,-503.80379384,0.00029686,2]
[312142800,1705667453091,-500.71712244,0.00029686,2]
[312142801,1705667453102,-500.0,0.00029686,2]
[312142802,1705667453114,-500.0,0.00029686,2]
[312142803,1705667453126,-502.97710303,0.00029686,2]
[312142804,1705667453137,-500.0,0.00029686,2]
[312142805,1705667453149,-737.33,0.00029686,2]
[312142806,1705667453159,-500.0,0.00029686,2]
[312142807,1705667453170,-500.0,0.00029686,2]
[312142808,1705667453181,-500.0,0.00029686,2]
[312142809,1705667453192,-500.0,0.00029686,2]
[312142810,1705667453203,-500.0,0.00029686,2]
[312142811,1705667453214,-500.0,0.00029686,2]
[312142812,1705667453225,-500.0,0.00029686,2]
[312142813,1705667453236,-634.33,0.00029686,2]
[312142814,1705667453247,-500.0,0.00029686,2]
[312142815,1705667453258,-500.0,0.00029686,2]
[312142816,1705667453269,-500.0,0.00029686,2]
[312142817,1705667453280,-330.86630192,0.00029686,2]
[312142818,1705667453291,-500.0,0.00029686,2]
[312142819,1705667453304,-1967.74,0.00029686,2]
[312142820,1705667453315,-500.0,0.00029686,2]
[312142821,1705667453327,-197.43911502,0.00029686,2]
[312142822,1705667453338,-500.0,0.00029686,2]
[312142823,1705667453350,-2476.54,0.00029686,2]
[312142824,1705667453362,-500.0,0.00029686,2]
[312142825,1705667453373,-583.1,0.00029686,2]
[312142826,1705667453384,-500.0,0.00029686,2]
[312142827,1705667453396,-500.0,0.00029686,2]
[312142828,1705667453408,-500.0,0.00029686,2]
[312142829,1705667453419,-500.77772675,0.00029686,2]
[312142830,1705667453430,-500.0,0.00029686,2]
[312142831,1705667453441,-295.69861919,0.00029686,2]
[312142832,1705667453453,-500.0,0.00029686,2]
[312142833,1705667453465,-602.61739208,0.00029686,2]
[312142834,1705667453476,-500.0,0.00029686,2]
[312142835,1705667453489,-500.0,0.00029686,2]
[312142836,1705667453500,-500.0,0.00029686,2]
[312142837,1705667453513,-500.0,0.00029686,2]
[312142838,1705667453525,-500.73985236,0.00029686,2]
[312142839,1705667453536,-500.0,0.00029686,2]
[312142840,1705667453548,-415.12126942,0.00029686,2]
[312142841,1705667453560,-500.0,0.00029686,2]
[312142842,1705667453571,-506.47953687,0.00029686,2]
[312142843,1705667453582,-500.0,0.00029686,2]
[312142844,1705667453595,-500.0,0.00029686,2]
[312142845,1705667453607,-500.0,0.00029686,2]
[312142846,1705667453619,-200.0,0.00029686,2]
[312142847,1705667453631,-500.0,0.00029686,2]
[312142848,1705667453642,-446.21201326,0.00029686,2]
[312142849,1705667453655,-500.0,0.00029686,2]
[312142850,1705667453667,-500.0,0.00029686,2]
[312142851,1705667453678,-500.0,0.00029686,2]
[312142852,1705667453690,-508.59956434,0.00029687,2]
[312142853,1705667453702,-634.33,0.00029687,2]
[312142854,1705667453773,-583.1,0.00029687,2]
[312142855,1705667453785,-500.0,0.00029687,2]
[312142856,1705667453796,-500.0,0.00029688,2]
[312142857,1705667453807,-514.24045562,0.00029688,2]
[312142858,1705667453820,-500.0,0.00029688,2]
[312142859,1705667453832,-500.0,0.00029688,2]
[312142860,1705667453845,-509.38162307,0.00029688,2]
[312142861,1705667453856,-500.0,0.00029688,2]
[312142862,1705667453868,-500.0,0.00029688,2]
[312142863,1705667453879,-500.0,0.00029688,2]
[312142864,1705667453893,-647.47145029,0.00029689,2]
[312142865,1705667453905,-542.29561648,0.00029689,2]
[312142866,1705667453918,-500.0,0.00029689,2]
[312142867,1705667453930,-500.0,0.00029689,2]
[312142868,1705667453942,-154.92253873,0.0002969,2]
[312142869,1705667453953,-634.33,0.00029698,2]
[312142870,1705667453964,-583.1,0.00029698,2]
[312142871,1705667453975,-634.33,0.00029699,2]
[312142872,1705667453987,-634.33,0.00029699,2]
[312142873,1705667453999,-634.33,0.00029699,2]
[312142874,1705667454010,-634.33,0.00029699,2]
[312142875,1705667454021,-634.33,0.00029699,2]
[312142876,1705667454033,-634.33,0.00029699,2]
[312142877,1705667454043,-634.33,0.00029699,2]
[312142878,1705667454054,-634.33,0.00029699,2]
[312142879,1705667454066,-634.33,0.00029699,2]
[312142880,1705667454077,-634.33,0.00029699,2]
[312142881,1705667454088,-634.33,0.00029699,2]
[312142882,1705667454104,-634.33,0.00029699,2]
[312142883,1705667454114,-634.33,0.00029699,2]
[312142884,1705667454126,-634.33,0.00029699,2]
[312142885,1705667454138,-634.33,0.00029699,2]
[312142886,1705667454149,-634.33,0.00029699,2]
[312142887,1705667454161,-634.33,0.00029699,2]
[312142888,1705667454172,-634.33,0.00029699,2]
[312142889,1705667454184,-634.33,0.00029699,2]
[312142890,1705667454194,-634.33,0.00029699,2]
[312142891,1705667454206,-634.45155676,0.00029699,2]
[312142892,1705667454217,-583.1,0.00029699,2]
[312142893,1705667454228,-583.1,0.00029699,2]
[312142894,1705667454238,-583.1,0.00029699,2]
[312142895,1705667454249,-583.1,0.00029699,2]
[312142896,1705667454260,-583.1,0.00029699,2]
[312142897,1705667454285,-583.1,0.00029699,2]
[312142898,1705667454305,-583.1,0.00029699,2]
[312142899,1705667454326,-583.1,0.00029699,2]
[312142900,1705667454353,-583.1,0.00029699,2]
[312142901,1705667454372,-583.1,0.00029699,2]
[312142902,1705667454393,-583.1,0.00029699,2]
[312142903,1705667454416,-583.1,0.00029699,2]
[312142904,1705667454436,-583.1,0.00029699,2]
[312142905,1705667454457,-583.1,0.00029699,2]
[312142906,1705667454475,-583.1,0.00029699,2]
[312142907,1705667454497,-583.1,0.00029699,2]
[312142908,1705667454520,-583.1,0.00029699,2]
[312142909,1705667454538,-583.1,0.00029699,2]
[312142910,1705667454554,-583.1,0.00029699,2]
[312142911,1705667454574,-583.1,0.00029699,2]
[312142912,1705667454590,-583.29134708,0.00029699,2]
[312142913,1705667454608,-500.0,0.00029699,2]
[312142914,1705667454627,-466206.06889896,0.000297,2]
[312142915,1705667454643,-6721.18024482,0.000297,2]
[312142916,1705667454661,-1000.0,0.000297,2]
[312142917,1705667454678,-154.98450155,0.00029788,2]
[312142918,1705667454695,-226.37152208,0.00029788,2]
[312142919,1705667454710,-607.13204194,0.00029789,2]
[312142920,1705667454728,-155.28322643,0.00029798,2]
[312142921,1705667454746,-1000.0,0.00029799,2]
[312142922,1705667454764,-50000.0,0.00029802,5]
[312142923,1705667454781,-637.63173004,0.0002986,2]
[312142924,1705667454798,-500.0,0.00029861,2]
[312142925,1705667454815,-548.43,0.00029861,2]
[312142926,1705667454831,-6357.89,0.00029861,2]
[312142927,1705667454849,-1126.41,0.00029861,2]
[312142928,1705667454867,-500.0,0.00029861,2]
[312142929,1705667454886,-500.0,0.00029861,2]
[312142930,1705667454904,-500.0,0.00029861,2]
[312142931,1705667454923,-500.0,0.00029861,2]
[312142932,1705667454940,-500.0,0.00029863,2]
[312142933,1705667454957,-500.0,0.00029863,2]
[312142934,1705667454975,-473.05709641,0.00029863,2]
[312142935,1705667454992,-500.0,0.00029863,2]
[312142936,1705667455009,-509.66,0.00029863,2]
[312142937,1705667455026,-500.0,0.00029863,2]
[312142938,1705667455116,-500.0,0.00029863,2]
[312142939,1705667455155,-500.0,0.00029863,2]
[312142940,1705667455167,-500.0,0.00029863,2]
[312142941,1705667455179,-1144.87,0.00029863,2]
[312142942,1705667455190,-2022.18,0.00029863,2]
[312142943,1705667455202,-500.0,0.00029863,2]
[312142944,1705667455214,-500.0,0.00029863,2]
[312142945,1705667455225,-500.0,0.00029863,2]
[312142946,1705667455237,-1065.44,0.00029863,2]
[312142947,1705667455248,-11232.55,0.00029863,2]
[312142948,1705667455259,-500.0,0.00029863,2]
[312142949,1705667455269,-3660.04,0.00029863,2]
[312142950,1705667455281,-20180.39,0.00029863,2]
[312142951,1705667455292,-500.0,0.00029863,2]
[312142952,1705667455303,-500.0,0.00029863,2]
[312142953,1705667455313,-1845.9,0.00029863,2]
[312142954,1705667455325,-558.54840599,0.00029863,2]
[312142955,1705667455337,-1484.16,0.00029863,2]
[312142956,1705667455351,-1034.99,0.00029863,2]
[312142957,1705667455362,-500.0,0.00029863,2]
[312142958,1705667455374,-500.0,0.00029863,2]
[312142959,1705667455385,-3841.56,0.00029863,2]
[312142960,1705667455396,-825.46,0.00029863,2]
[312142961,1705667455406,-500.0,0.00029863,2]
[312142962,1705667455418,-1454.26,0.00029863,2]
[312142963,1705667455429,-300.14,0.00029863,2]
[312142964,1705667455441,-500.0,0.00029863,2]
[312142965,1705667455452,-3853.92,0.00029863,2]
[312142966,1705667455463,-760.8,0.00029863,2]
[312142967,1705667455474,-500.0,0.00029863,2]
[312142968,1705667455486,-655.04,0.00029863,2]
[312142969,1705667455497,-4838.72,0.00029863,2]
[312142970,1705667455508,-1135.54,0.00029863,2]
[312142971,1705667455520,-500.0,0.00029863,2]
[312142972,1705667455531,-2055.32,0.00029863,2]
[312142973,1705667455543,-1206.23882079,0.00029863,2]
[312142974,1705667455553,-1000.0,0.00029873,2]
[312142975,1705667455565,-717.35798837,0.00029888,2]
[312142976,1705667455575,-154.87609912,0.00029898,2]
[312142977,1705667455586,-154.87609912,0.00029898,2]
[312142978,1705667455598,-154.87609912,0.00029898,2]
[312142979,1705667455609,-154.87609912,0.00029898,2]
[312142980,1705667455620,-154.87609912,0.00029898,2]
[312142981,1705667455633,-2813.43161407,0.00029898,2]
[312142982,1705667455644,-154.98450155,0.00029899,2]
[312142983,1705667455656,-154.9690062,0.000299,2]
[312142984,1705667455667,-2170.1294719,0.000299,2]
[312142985,1705667455678,-155.38504427,0.000299,2]
[312142986,1705667455689,-265.02619235,0.000299,2]
[312142987,1705667455700,-154.86062544,0.000299,2]
[312142988,1705667455711,-150.0,0.000299,2]
[312142989,1705667455722,-802.44,0.00029949,2]
[312142990,1705667455733,-500.0,0.00029949,2]
[312142991,1705667455744,-500.0,0.00029949,2]
[312142992,1705667455755,-500.0,0.00029949,2]
[312142993,1705667455766,-519.12215261,0.00029949,2]
[312142994,1705667455777,-500.0,0.00029949,2]
[312142995,1705667455788,-501.38753386,0.00029949,2]
[312142996,1705667455799,-500.0,0.00029949,2]
[312142997,1705667455810,-500.0,0.00029949,2]
[312142998,1705667455823,-500.0,0.00029949,2]
[312142999,1705667455835,-500.0,0.00029949,2]
[312143000,1705667455848,-500.0,0.00029949,2]
[312143001,1705667455859,-808.2,0.00029949,2]
[312143002,1705667455870,-500.0,0.00029949,2]
[312143003,1705667455882,-632.19048269,0.00029949,2]
[312143004,1705667455895,-500.0,0.00029949,2]
[312143005,1705667455906,-500.0,0.00029949,2]
[312143006,1705667455919,-777.09,0.00029949,2]
[312143007,1705667455930,-500.0,0.00029949,2]
[312143008,1705667455943,-500.0,0.00029949,2]
[312143009,1705667455954,-504.20658948,0.00029949,2]
[312143010,1705667455967,-500.0,0.00029949,2]
[312143011,1705667455978,-500.0,0.00029949,2]
[312143012,1705667455989,-500.0,0.00029949,2]
[312143013,1705667456000,-500.0,0.00029949,2]
[312143014,1705667456011,-500.0,0.00029949,2]
[312143015,1705667456022,-500.0,0.00029949,2]
[312143016,1705667456033,-503.89430269,0.00029949,2]
[312143017,1705667456045,-296.75355326,0.00029949,2]
[312143018,1705667456056,-500.0,0.00029949,2]
[312143019,1705667456067,-635.96694651,0.00029949,2]
[312143020,1705667456079,-500.0,0.00029949,2]
[312143021,1705667456090,-500.0,0.00029949,2]
[312143022,1705667456102,-500.0,0.00029949,2]
[312143023,1705667456112,-500.0,0.00029949,2]
[312143024,1705667456123,-500.80353804,0.00029949,2]
[312143025,1705667456134,-500.0,0.00029949,2]
[312143026,1705667456145,-1046.28,0.00029949,2]
[312143027,1705667456157,-500.0,0.00029949,2]
[312143028,1705667456168,-500.0,0.00029949,2]
[312143029,1705667456180,-500.0,0.00029949,2]
[312143030,1705667456190,-1000.0,0.00029949,2]
[312143031,1705667456202,-521.38601763,0.0002996,2]
[312143032,1705667456213,-500.0,0.0002996,2]
[312143033,1705667456224,-500.0,0.0002996,2]
[312143034,1705667456235,-500.0,0.0002996,2]
[312143035,1705667456246,-500.0,0.0002996,2]
[312143036,1705667456258,-500.0,0.0002996,2]
[312143037,1705667456268,-500.0,0.0002996,2]
[312143038,1705667456280,-500.0,0.0002996,2]
[312143039,1705667456291,-500.0,0.0002996,2]
[312143040,1705667456302,-500.0,0.0002996,2]
[312143041,1705667456313,-500.0,0.0002996,2]
[312143042,1705667456324,-500.0,0.0002996,2]
[312143043,1705667456335,-500.49039529,0.0002996,2]
[312143044,1705667456347,-500.0,0.0002996,2]
[312143045,1705667456359,-500.0,0.0002996,2]
[312143046,1705667456370,-500.0,0.0002996,2]
[312143047,1705667456383,-500.0,0.0002996,2]
[312143048,1705667456394,-500.0,0.0002996,2]
[312143049,1705667456404,-500.0,0.0002996,2]
[312143050,1705667456415,-500.0,0.0002996,2]
[312143051,1705667456437,-500.0,0.0002996,2]
[312143052,1705667456451,-500.0,0.0002996,2]
[312143053,1705667456463,-501.94159678,0.0002996,2]
[312143054,1705667456474,-500.0,0.0002996,2]
[312143055,1705667456487,-500.87491011,0.0002996,2]
[312143056,1705667456499,-500.0,0.0002996,2]
[312143057,1705667456511,-507.61838618,0.0002996,2]
[312143058,1705667456523,-500.0,0.0002996,2]
[312143059,1705667456535,-504.67298462,0.0002996,2]
[312143060,1705667456547,-500.0,0.0002996,2]
[312143061,1705667456559,-500.0,0.0002996,2]
[312143062,1705667456683,-500.0,0.0002996,2]
[312143063,1705667456694,-500.0,0.0002996,2]
[312143064,1705667456705,-500.0,0.0002996,2]
[312143065,1705667456717,-364.49209463,0.0002996,2]
[312143066,1705667456728,-1000.0,0.0002996,2]